fUSD/lending_fUSD_20260316
["ID","MTS","AMOUNT","RATE_DAILY","PERIOD"]
[408440141,1773630631779,-166.66,0.00016843,2]
[408440142,1773630631788,-4906.14907462,0.00017,2]
[408440143,1773630631798,-511.0,0.00017,2]
[408440144,1773630631808,-166.66,0.00017191,2]
[408440145,1773630631817,-150.0,0.00017289,2]
[408440146,1773630631827,-989.13,0.00017364,2]
[408440147,1773630631836,-760.15541166,0.00017364,2]
[408440148,1773630631847,-503.04458834,0.00017364,2]
[408440149,1773630631857,-500.0,0.00017364,2]
[408440150,1773630631867,-207.98205372,0.00017404,2]
[408440151,1773630631876,-161.07,0.00017472,2]
[408440152,1773630631885,-166.66,0.00017538,2]
[408440153,1773630631894,-420.0,0.00017707,2]
[408440154,1773630631905,-480.0,0.00017796,2]
[408440155,1773630631916,-1102.06086137,0.00017882,2]
[408440156,1773630631926,-166.66,0.00017885,2]
[408440157,1773630631935,-166.68,0.00017885,2]
[408440158,1773630631944,-161.07,0.00017909,2]
[408440159,1773630631954,-13465.10976647,0.00018,5]
[408440160,1773630631963,-1959.56597553,0.00018,2]
[408440161,1773630631972,-174.61919141,0.00018013,2]
[408440162,1773630631982,-3240.0,0.0001811,2]
[408440163,1773630631992,-16015.3898,0.00018185,2]
[408440164,1773630632001,-6632.1507,0.00018185,2]
[408440165,1773630632011,-153.33196446,0.00018185,2]
[408440166,1773630632020,-1302.56542605,0.00018185,2]
[408440167,1773630632030,-166.66,0.00018233,2]
[408440168,1773630632039,-11468.10970191,0.00018235,2]
[408440169,1773630632049,-1500.0,0.00018266,2]
[408440170,1773630632058,-500.0,0.00018273,2]
[408440171,1773630632069,-500.0,0.00018273,2]
[408440172,1773630632083,-500.0,0.00018273,2]
[408440173,1773630632093,-500.0,0.00018273,2]
[408440174,1773630632103,-262.84567269,0.00018274,2]
[408440175,1773630632112,-500.0,0.00018274,2]
[408440176,1773630632122,-500.0,0.00018274,2]
[408440177,1773630632131,-500.0,0.00018274,2]
[408440178,1773630632141,-202.18368162,0.00018274,2]
[408440179,1773630632150,-500.0,0.00018274,2]
[408440180,1773630632160,-500.0,0.00018274,2]
[408440181,1773630632169,-500.0,0.00018274,2]
[408440182,1773630632179,-750.0,0.00018274,2]
[408440183,1773630632189,-515.51151666,0.00018274,2]
[408440184,1773630632198,-500.0,0.00018274,2]
[408440185,1773630632207,-750.0,0.00018274,2]
[408440186,1773630632217,-500.0,0.00018274,2]
[408440187,1773630632226,-500.0,0.00018274,2]
[408440188,1773630632236,-750.0,0.00018274,2]
[408440189,1773630632246,-500.0,0.00018274,2]
[408440190,1773630632256,-500.0,0.00018274,2]
[408440191,1773630632265,-750.0,0.00018274,2]
[408440192,1773630632275,-500.0,0.00018274,2]
[408440193,1773630632284,-500.0,0.00018274,2]
[408440194,1773630632296,-750.0,0.00018274,2]
[408440195,1773630632306,-500.0,0.00018274,2]
[408440196,1773630632316,-500.0,0.00018274,2]
[408440197,1773630632326,-750.0,0.00018274,2]
[408440198,1773630632336,-616.59252359,0.00018274,2]
[408440199,1773630632346,-500.0,0.00018274,2]
[408440200,1773630632357,-750.0,0.00018274,2]
[408440201,1773630632371,-500.0,0.00018274,2]
[408440202,1773630632381,-750.0,0.00018274,2]
[408440203,1773630632390,-750.0,0.00018274,2]
[408440204,1773630632401,-500.0,0.00018274,2]
[408440205,1773630632411,-258.89037286,0.00018274,2]
[408440206,1773630632420,-500.0,0.00018274,2]
[408440207,1773630632431,-750.0,0.00018274,2]
[408440208,1773630632441,-500.0,0.00018274,2]
[408440209,1773630632451,-500.0,0.00018274,2]
[408440210,1773630632460,-500.0,0.00018274,2]
[408440211,1773630632470,-892.15131628,0.00018274,2]
[408440212,1773630632481,-498.44138815,0.00018274,2]
[408440213,1773630632498,-1.55861185,0.00018274,2]
[408440214,1773630632508,-250.0,0.00018274,2]
[408440215,1773630632518,-250.0,0.00018274,2]
[408440216,1773630632529,-35.33216291,0.00018274,2]
[408440217,1773630632541,-214.66783709,0.00018274,2]
[408440218,1773630632552,-200.0,0.00018274,2]
[408440219,1773630632562,-250.0,0.00018274,2]
[408440220,1773630632573,-250.0,0.00018274,2]
[408440221,1773630632584,-500.0,0.00018274,2]
[408440222,1773630632593,-250.0,0.00018274,2]
[408440223,1773630632603,-500.0,0.00018274,2]
[408440224,1773630632612,-250.0,0.00018274,2]
[408440225,1773630632623,-500.0,0.00018274,2]
[408440226,1773630632633,-250.0,0.00018274,2]
[408440227,1773630632642,-500.0,0.00018274,2]
[408440228,1773630632652,-45.33216293,0.00018274,2]
[408440230,1773630638035,-204.66783707,0.00018274,2]
[408440231,1773630638044,-500.0,0.00018274,2]
[408440232,1773630638053,-151.0,0.00018274,2]
[408440233,1773630638064,-250.0,0.00018274,2]
[408440235,1773630638073,-500.0,0.00018274,2]
[408440236,1773630638083,-151.0,0.00018274,2]
[408440238,1773630638092,-250.0,0.00018274,2]
[408440240,1773630638101,-500.0,0.00018274,2]
[408440242,1773630638110,-151.0,0.00018274,2]
[408440244,1773630638119,-500.0,0.00018274,2]
[408440246,1773630638128,-154.69483146,0.00018274,2]
[408440248,1773630638137,-151.0,0.00018274,2]
[408440250,1773630638147,-500.0,0.00018274,2]
[408440252,1773630638156,-151.0,0.00018274,2]
[408440254,1773630638165,-532.93872761,0.00018274,2]
[408440256,1773630638174,-151.0,0.00018274,2]
[408440258,1773630638184,-151.0,0.00018274,2]
[408440260,1773630638194,-151.0,0.00018274,2]
[408440262,1773630638203,-500.0,0.00018285,2]
[408440264,1773630638212,-2500.0,0.00018285,2]
[408440266,1773630638221,-197.33136433,0.00018312,2]
[408440268,1773630638230,-500.0,0.00018325,2]
[408440270,1773630638239,-161.07,0.00018345,2]
[408440272,1773630638248,-4230.37,0.00018356,2]
[408440274,1773630638257,-1302.56542596,0.00018376,2]
[408440276,1773630638267,-500.0,0.00018384,2]
[408440278,1773630638276,-1140.2907482,0.00018385,2]
[408440279,1773630638285,-3053.5169616,0.00018385,2]
[408440280,1773630638295,-4343.4598261,0.00018385,2]
[408440281,1773630638305,-14727.7585591,0.00018385,2]
[408440282,1773630638313,-159.0,0.00018385,3]
[408440283,1773630638323,-150.0,0.00018385,3]
[408440284,1773630638332,-168.0,0.00018438,2]
[408440285,1773630638341,-1841.0,0.00018445,2]
[408440286,1773630638351,-500.0,0.00018484,2]
[408440287,1773630638360,-1000.0,0.0001853,2]
[408440288,1773630638372,-500.0,0.00018559,2]
[408440289,1773630638380,-1302.56542596,0.00018566,2]
[408440290,1773630638390,-151.0,0.00018626,2]
[408440291,1773630638402,-1302.56542596,0.00018757,2]
[408440292,1773630638410,-168.0,0.00018776,2]
[408440293,1773630638420,-178.63634151,0.00018782,2]
[408440294,1773630638429,-1819.2,0.00018782,2]
[408440295,1773630638439,-161.07,0.00018782,2]
[408440296,1773630638449,-1000.0,0.00018821,2]
[408440297,1773630638458,-1000.0,0.00018821,2]
[408440298,1773630638467,-500.0,0.00018821,2]
[408440299,1773630638645,-1000.0,0.00018821,2]
[408440300,1773630638655,-203.12664237,0.00018822,2]
[408440301,1773630638664,-2000.0,0.00018839,2]
[408440302,1773630638673,-538.19,0.00018903,2]
[408440303,1773630638683,-1302.56542596,0.00018947,2]
[408440304,1773630638692,-154.59,0.00019,2]
[408440305,1773630638701,-166.66,0.00019045,2]
[408440306,1773630638710,-272.28806099,0.00019071,2]
[408440307,1773630638719,-200.0,0.000191,6]
[408440308,1773630638728,-1302.56542596,0.00019138,2]
[408440309,1773630638737,-2000.0,0.000192,2]
[408440310,1773630638746,-500.0,0.000192,7]
[408440311,1773630638755,-161.07,0.00019219,2]
[408440312,1773630638764,-168.0,0.00019222,2]
[408440313,1773630638773,-168.0,0.00019247,2]
[408440314,1773630638782,-168.0,0.00019273,2]
[408440315,1773630638791,-700.0,0.000193,7]
[408440316,1773630638800,-1302.56542596,0.00019328,2]
[408440317,1773630638809,-177.0,0.00019356,2]
[408440318,1773630638818,-505.31912493,0.00019368,2]
[408440319,1773630638827,-1002.99107148,0.00019368,2]
[408440320,1773630638836,-168.0,0.00019373,2]
[408440321,1773630638846,-1000.0,0.000194,7]
[408440322,1773630638855,-168.0,0.00019489,2]
[408440323,1773630638864,-1200.0,0.000195,7]
[408440324,1773630638873,-168.0,0.00019508,2]
[408440325,1773630638882,-1302.56542596,0.00019519,2]
[408440326,1773630638890,-2202.81493378,0.00019583,2]
[408440327,1773630638899,-200.0,0.000196,7]
[408440328,1773630638908,-166.66,0.00019634,2]
[408440329,1773630638917,-200.0,0.000197,7]
[408440330,1773630638927,-1189.95473058,0.000197,2]
[408440331,1773630638936,-2727.49584035,0.000197,2]
[408440332,1773630638952,-7659.32583714,0.000197,2]
[408440333,1773630638961,-168.0,0.000197,2]
[408440334,1773630638970,-1302.56542596,0.00019709,2]
[408440335,1773630638979,-10386.82167741,0.00019722,2]
[408440336,1773630638989,-1189.95473051,0.00019729,2]
[408440337,1773630639000,-10386.82167741,0.00019744,2]
[408440338,1773630639009,-168.0,0.00019747,2]
[408440339,1773630639018,-1189.95473051,0.00019757,2]
[408440340,1773630639027,-538.19,0.00019762,2]
[408440341,1773630639036,-430.25268291,0.00019766,2]
[408440342,1773630639046,-500.0,0.00019766,2]
[408440343,1773630639056,-500.0,0.00019766,2]
[408440344,1773630639067,-500.0,0.00019766,2]
[408440345,1773630639076,-500.0,0.00019766,2]
[408440346,1773630639087,-515.52448038,0.00019766,2]
[408440347,1773630639097,-168.0,0.00019771,2]
[408440348,1773630639106,-150.14639415,0.00019773,2]
[408440349,1773630639115,-284.07544457,0.00019773,2]
[408440350,1773630639124,-500.0,0.00019773,2]
[408440351,1773630639133,-500.0,0.00019773,2]
[408440352,1773630639142,-501.5985008,0.00019773,2]
[408440353,1773630639151,-500.45343199,0.00019773,2]
[408440354,1773630639160,-1189.95473051,0.00019786,2]
[408440355,1773630639171,-155.45790751,0.00019797,2]
[408440356,1773630639179,-342.04170369,0.00019799,2]
[408440357,1773630639191,-500.0,0.00019799,2]
[408440358,1773630639200,-500.0,0.00019799,2]
[408440359,1773630639209,-500.0,0.00019799,2]
[408440360,1773630639219,-129964.31896746,0.000198,2]
[408440362,1773630639956,-1019.64210675,0.000198,2]
[408440363,1773630640008,-6600.50259506,0.000198,2]
[408440364,1773630640434,-4772.49351657,0.000198,2]
[408440365,1773630640447,-2742.37269276,0.000198,2]
[408440372,1773630642789,-522.5563823,0.00019767,2]
[408440373,1773630643051,-9864.26529511,0.00019767,2]
[408440374,1773630643060,-2453.89642655,0.000198,2]
[408440377,1773630645623,-2326.58381018,0.000198,2]
[408440378,1773630645942,-686.69924265,0.000198,2]
[408440381,1773630696203,10000.0,0.0002,120]
[408440382,1773630714090,5000.0,0.000136,60]
[408440383,1773630714119,5000.0,0.000136,60]
[408440384,1773630754719,5000.01,9.496e-05,2]
[408440385,1773630754739,4996.99,9.496e-05,2]
[408440386,1773630764380,270.77,8.682e-05,2]
[408440387,1773630764749,270.77,9.139e-05,2]
[408440388,1773630791546,150.0,9.139e-05,3]
[408440389,1773630845473,150.0,9.139e-05,3]
[408440390,1773630905747,159.0,9.139e-05,3]
[408440391,1773630907180,151.0,9.139e-05,3]
[408440392,1773630965849,151.0,9.139e-05,3]
[408440393,1773631026681,151.0,9.139e-05,3]
[408440394,1773631085104,151.0,9.139e-05,3]
[408440395,1773631144945,151.0,9.139e-05,3]
[408440396,1773631205523,229.0,9.596e-05,2]
[408440397,1773631205722,159.0,9.139e-05,3]
[408440398,1773631206144,151.0,9.139e-05,3]
[408440399,1773631271909,151.0,9.139e-05,3]
[408440400,1773631326565,151.0,9.139e-05,3]
[408440401,1773631387759,151.0,9.139e-05,3]
[408440402,1773631448186,151.0,9.139e-05,3]
[408440403,1773631507469,151.0,9.139e-05,3]
[408440407,1773631773113,-270.77,9.596e-05,2]
[408440408,1773631773135,-730.06,0.0001,2]
[408440409,1773631773157,-151.0,0.0001,2]
[408440410,1773631773177,-151.0,0.0001,2]
[408440411,1773631773198,-151.0,0.0001,2]
[408440412,1773631773219,-268.57670729,0.0001,2]
[408440413,1773631773239,-151.0,0.0001,2]
[408440414,1773631773264,-151.0,0.0001,2]
[408440415,1773631773287,-151.0,0.0001,2]
[408440416,1773631773307,-151.0,0.0001,2]
[408440417,1773631773327,-151.0,0.0001,2]
[408440418,1773631773346,-151.0,0.0001,2]
[408440419,1773631773367,-151.0,0.0001,2]
[408440420,1773631773387,-151.0,0.0001,2]
[408440421,1773631773408,-151.0,0.0001,2]
[408440422,1773631773431,-151.0,0.0001,2]
[408440423,1773631773450,-151.0,0.0001,2]
[408440424,1773631773474,-151.0,0.0001,2]
[408440425,1773631773494,-151.0,0.0001,2]
[408440426,1773631773514,-151.0,0.0001,2]
[408440427,1773631773534,-151.0,0.0001,2]
[408440428,1773631773554,-153.7981562,0.0001,2]
[408440429,1773631773575,-587.08981475,0.0001,2]
[408440430,1773631773596,-214.6534997,0.0001,2]
[408440431,1773631791033,-285.3465003,0.0001,2]
[408440438,1773631831810,-270.77,0.00010053,2]
[408440439,1773631831819,-730.06,0.00010274,2]
[408440440,1773631831828,-248.03929294,0.0001051,2]
[408440441,1773631831839,-22.73070706,0.0001051,2]
[408440442,1773631831848,-370.92276894,0.00010548,2]
[408440443,1773631831859,-302.8770905,0.00010548,2]
[408440444,1773631831871,-56.26014056,0.00010548,2]
[408440445,1773631831880,-730.06,0.00010822,2]
[408440446,1773631831889,-270.77,0.00010967,2]
[408440447,1773631831898,-730.06,0.00011096,2]
[408440448,1773631831907,-730.11243447,0.0001137,2]
[408440449,1773631831915,-270.77,0.00011424,2]
[408440450,1773631831925,-270.60344323,0.00011881,2]
[408440451,1773631831943,-0.16655677,0.00011881,2]
[408440452,1773631831955,-270.77,0.00012338,2]
[408440453,1773631831964,-200.9094897,0.00012795,2]
[408440454,1773631831976,-69.8605103,0.00012795,2]
[408440455,1773631831985,-180.1394897,0.00013252,2]
[408440456,1773631832000,-90.6305103,0.00013252,2]
[408440457,1773631832010,-270.77,0.00013709,2]
[408440458,1773631832019,-270.77,0.00014166,2]
[408440459,1773631832029,-270.77,0.00014623,2]
[408440460,1773631832039,-823.41,0.00014625,2]
[408440461,1773631832048,-502.0,0.00014767,2]
[408440462,1773631832058,-270.77,0.0001508,2]
[408440463,1773631832067,-200.0,0.00015337,2]
[408440464,1773631832076,-18203.63,0.0001538,2]
[408440465,1773631832085,-270.77,0.00015537,2]
[408440466,1773631832095,-2000.0,0.0001589,2]
[408440467,1773631832104,-270.77,0.00015994,2]
[408440468,1773631832113,-161.04,0.00016329,2]
[408440469,1773631832122,-270.77,0.00016451,2]
[408440470,1773631832131,-166.81,0.00016712,2]
[408440471,1773631832140,-270.77,0.00016907,2]
[408440472,1773631832149,-511.0,0.00017,2]
[408440473,1773631832159,-2000.0,0.00017364,2]
[408440474,1773631832169,-180.71,0.00017364,2]
[408440476,1773631832179,-270.77,0.00017364,2]
[408440478,1773631832188,-337.79,0.00017436,2]
[408440479,1773631832198,-4142.2444,0.000178,2]
[408440480,1773631832208,-4809.6743,0.000178,2]
[408440481,1773631832217,-4289.56213121,0.00017886,2]
[408440482,1773631832226,-500.0,0.00018,2]
[408440483,1773631832235,-509.73930588,0.00018,2]
[408440484,1773631832245,-512.53653167,0.00018,2]
[408440485,1773631832254,-500.0,0.00018,2]
[408440486,1773631832263,-576.39644253,0.00018,2]
[408440487,1773631832272,-757.64036251,0.00018,2]
[408440488,1773631832282,-500.0,0.00018,2]
[408440489,1773631832291,-500.0,0.00018,2]
[408440490,1773631832300,-933.98797267,0.00018,2]
[408440491,1773631832309,-878.46686074,0.00018058,2]
[408440492,1773631832319,-503.99973016,0.00018067,2]
[408440493,1773631832332,-502.54501889,0.00018067,2]
[408440494,1773631832341,-501.44386623,0.00018067,2]
[408440495,1773631832352,-500.92477762,0.00018067,2]
[408440496,1773631832361,-151.0,0.00018068,2]
[408440497,1773631832371,-151.0,0.00018068,2]
[408440498,1773631832380,-198.45949308,0.00018068,2]
[408440499,1773631832389,-500.0,0.00018068,2]
[408440500,1773631832399,-500.0,0.00018068,2]
[408440501,1773631832409,-500.0,0.00018068,2]
[408440502,1773631832420,-500.0,0.00018068,2]
[408440503,1773631832430,-500.0,0.00018068,2]
[408440504,1773631832439,-500.0,0.00018068,2]
[408440505,1773631832448,-500.0,0.00018068,2]
[408440506,1773631832458,-500.0,0.00018068,2]
[408440507,1773631832467,-500.0,0.00018068,2]
[408440509,1773631832477,-500.0,0.00018068,2]
[408440512,1773631832487,-500.0,0.00018068,2]
[408440514,1773631832497,-500.0,0.00018068,2]
[408440516,1773631832506,-500.0,0.00018073,2]
[408440517,1773631832515,-168.0,0.00018079,2]
[408440518,1773631832525,-263.71292745,0.00018084,2]
[408440519,1773631832534,-416.26583419,0.00018084,2]
[408440520,1773631832544,-70658.0211197,0.00018085,2]
[408440521,1773631832556,-2167.8569803,0.00018085,2]
[408440522,1773631832566,-168.0,0.00018158,2]
[408440523,1773631832575,-1000.0,0.00018185,2]
[408440524,1773631832585,-878.46686068,0.00018263,2]
[408440525,1773631832594,-1909.27330247,0.00018274,2]
[408440526,1773631832605,-637.71948467,0.00018274,2]
[408440527,1773631832616,-183.83366008,0.00018274,2]
[408440528,1773631832626,-2060.64490524,0.00018274,2]
[408440529,1773631832635,-1355.94574535,0.00018274,2]
[408440530,1773631832647,-818.42572312,0.00018274,2]
[408440537,1773631838360,-618.65680556,0.00017985,2]
[408440538,1773631838475,-381.34319444,0.00017985,2]
[408440539,1773631838486,-534.23089767,0.00018274,2]
[408440540,1773631838496,-6274.72550358,0.00018274,2]
[408440541,1773631838511,-2408.44186694,0.00018274,2]
[408440542,1773631838521,-168.0,0.00018441,2]
[408440543,1773631838531,-878.46686068,0.00018467,2]
[408440544,1773631838542,-1008.0,0.00018637,2]
[408440545,1773631838553,-1008.0,0.00018659,2]
[408440546,1773631838563,-878.46686068,0.00018672,2]
[408440547,1773631838573,-500.0,0.0001872,2]
[408440548,1773631838583,-337.79,0.00018806,2]
[408440549,1773631838593,-878.46686068,0.00018877,2]
[408440550,1773631838603,-1008.0,0.00018919,2]
[408440551,1773631838612,-988.386344,0.00018984,2]
[408440552,1773631838622,-500.0,0.00018996,2]
[408440553,1773631838632,-1455.36,0.00019012,2]
[408440554,1773631838642,-500.0,0.00019051,2]
[408440555,1773631838656,-878.46686068,0.00019081,2]
[408440556,1773631838666,-500.0,0.00019106,2]
[408440557,1773631838676,-168.0,0.00019132,2]
[408440558,1773631838686,-500.0,0.0001916,2]
[408440559,1773631838695,-500.0,0.00019215,2]
[408440560,1773631838714,-426.0,0.0001927,2]
[408440561,1773631838724,-878.46686068,0.00019286,2]
[408440562,1773631838737,-1468.54328918,0.00019404,2]
[408440563,1773631838747,-168.0,0.00019424,2]
[408440564,1773631838757,-878.46686068,0.00019491,2]
[408440565,1773631838766,-2000.0,0.00019535,2]
[408440566,1773631838776,-180.71,0.00019535,2]
[408440567,1773631838785,-168.0,0.00019591,2]
[408440568,1773631838795,-322.03395,0.000196,2]
[408440569,1773631838807,-168.0,0.00019647,2]
[408440570,1773631838816,-277.9333858,0.0001965,2]
[408440583,1773631840120,-276.871998,0.00018273,2]
[408440585,1773631840132,-223.128002,0.00018273,2]
[408440586,1773631840142,-44.1005642,0.0001965,2]
[408440587,1773631840153,-878.46686068,0.00019695,2]
[408440588,1773631840162,-322.03395,0.000197,2]
[408440589,1773631840174,-594.97736529,0.000197,2]
[408440590,1773631840184,-7218.51953602,0.000197,2]
[408440591,1773631840194,-2524.0700893,0.00019722,2]
[408440592,1773631840211,-2075.5,0.00019722,2]
[408440593,1773631840222,-590.70565742,0.00019722,2]
[408440594,1773631840234,-2028.24378923,0.00019722,2]
[408440595,1773631840244,-594.97736525,0.00019729,2]
[408440596,1773631840257,-168.0,0.00019737,2]
[408440597,1773631840268,-2980.3180976,0.00019744,2]
[408440598,1773631840657,-4238.20143835,0.00019744,2]
[408440599,1773631840667,-322.03395,0.0001975,2]
[408440600,1773631840677,-594.97736525,0.00019757,2]
[408440601,1773631840687,-7218.51953595,0.00019767,2]
[408440602,1773631840696,-151.0,0.00019767,2]
[408440603,1773631840711,-2277.2388858,0.00019775,2]
[408440604,1773631840720,-15914.9345379,0.00019775,2]
[408440605,1773631840729,-594.97736525,0.00019786,2]
[408440606,1773631840739,-7218.51953595,0.00019789,2]
[408440607,1773631840751,-500.0,0.00019799,2]
[408440608,1773631840760,-571.2987718,0.00019799,2]
[408440609,1773631840770,-507.88785737,0.00019799,2]
[408440611,1773631840779,-500.0,0.00019799,2]
[408440613,1773631840788,-511.13782395,0.00019799,2]
[408440614,1773631840802,-500.0,0.00019799,2]
[408440615,1773631840811,-500.0,0.00019799,2]
[408440616,1773631840820,-504.72470165,0.00019799,2]
[408440617,1773631840829,-520.40818183,0.00019799,2]
[408440618,1773631840839,-300.0,0.00019799,2]
[408440619,1773631840848,-672.1888797,0.00019799,2]
[408440620,1773631840857,-46574.99311231,0.000198,2]
[408440621,1773631840868,-505.0,0.000198,2]
[408440627,1773631842982,-151.0,0.00019767,2]
[408440628,1773631842992,-16343.54565753,0.000198,2]
[408440629,1773631843001,-41499.05463542,0.000198,2]
[408440630,1773631843011,-151.0,0.000198,2]
[408440631,1773631843021,-213.10067904,0.000198,2]
[408440632,1773631843030,-153.945454,0.000198,2]
[408440633,1773631843039,-1000.0,0.000198,2]
[408440634,1773631843049,-1000.0,0.000198,2]
[408440635,1773631843058,-1000.0,0.000198,2]
[408440636,1773631843067,-983.809,0.000198,2]
[408440637,1773631843076,-322.03394,0.000198,2]
[408440638,1773631843086,-322.03395,0.000198,2]
[408440639,1773631843095,-151.0,0.000198,2]
[408440640,1773631843104,-151.0,0.000198,2]
[408440641,1773631843113,-151.0,0.000198,2]
[408440642,1773631843124,-150.0,0.000198,7]
[408440643,1773631843134,-151.0,0.000198,2]
[408440644,1773631843143,-151.0,0.000198,2]
[408440645,1773631843151,-250.960714,0.000198,2]
[408440646,1773631843160,-7218.51953595,0.00019811,2]
[408440647,1773631843170,-594.97736525,0.00019814,2]
[408440648,1773631843179,-7218.51953595,0.00019833,2]
[408440649,1773631843188,-594.97736525,0.00019843,2]
[408440650,1773631843197,-7218.51953595,0.00019856,2]
[408440651,1773631843208,-594.97736525,0.00019871,2]
[408440652,1773631843217,-500.90690833,0.00019873,2]
[408440653,1773631843226,-7218.51953595,0.00019878,2]
[408440654,1773631843235,-151.0,0.00019883,2]
[408440655,1773631843244,-151.0,0.00019883,2]
[408440656,1773631843254,-197.650216,0.00019883,2]
[408440657,1773631843263,-151.0,0.00019883,2]
[408440658,1773631843273,-207.382488,0.00019883,2]
[408440659,1773631843283,-5800.0,0.00019883,2]
[408440660,1773631843292,-5800.0,0.00019892,2]
[408440661,1773631843302,-500.0,0.00019899,2]
[408440663,1773631843312,-300.0,0.00019899,2]
[408440665,1773631843322,-500.0,0.00019899,2]
[408440667,1773631843332,-519.11389951,0.00019899,2]
[408440669,1773631843341,-500.0,0.00019899,2]
[408440671,1773631843351,-566.08679715,0.00019899,2]
[408440673,1773631843361,-500.0,0.00019899,2]
[408440675,1773631843370,-184.96178542,0.00019899,2]
[408440677,1773631843380,-174.21363972,0.00019899,2]
[408440679,1773631843391,-294.93543149,0.00019899,2]
[408440681,1773631843401,-188.48587197,0.00019899,2]
[408440683,1773631843410,-50132.3279052,0.000199,2]
[408440684,1773631843420,-5800.0,0.000199,2]
[408440687,1773631843430,-16801.59937492,0.000199,3]
[408440689,1773631843440,-369.09134927,0.000199,3]
[408440691,1773631843449,-1896.79161857,0.000199,2]
[408440693,1773631843467,-1902.12393324,0.000199,2]
[408440695,1773631843476,-5000.0,0.000199,2]
[408440696,1773631843487,-594.97736525,0.000199,2]
[408440698,1773631843496,-1453.98977472,0.000199,2]
[408440700,1773631843506,-151.0,0.000199,2]
[408440702,1773631843515,-151.0,0.000199,2]
[408440705,1773631843524,-151.0,0.000199,2]
[408440707,1773631843535,-151.0,0.000199,2]
[408440709,1773631843545,-2040.59479266,0.000199,2]
[408440710,1773631843554,-416.24989533,0.000199,2]
[408440713,1773631843564,-752.090363,0.000199,2]
[408440714,1773631843573,-10930.04710066,0.000199,2]
[408440716,1773631843582,-7218.51953595,0.000199,2]
[408440718,1773631843591,-151.0,0.000199,2]
[408440720,1773631843600,-151.0,0.000199,2]
[408440722,1773631843609,-878.46686068,0.000199,2]
[408440724,1773631843618,-500.0,0.000199,2]
[408440726,1773631843627,-337.53416247,0.000199,2]
[408440729,1773631843637,-1029.0,0.00019904,2]
[408440732,1773631843646,-15613.61953386,0.0001995,15]
[408440735,1773631843655,-1304.0,0.00019973,2]
[408440738,1773631843665,-171.0,0.00019973,2]
[408440740,1773631843674,-2443.0,0.0001998,5]
[408440743,1773631843683,-26871.42172922,0.0001998,2]
[408440745,1773631843693,-251.59447434,0.0001999,2]
[408440747,1773631843701,-155.40104725,0.0001999,2]
[408440750,1773631843714,-500.0,0.00019999,2]
[408440753,1773631843724,-500.0,0.00019999,2]
[408440755,1773631843736,-500.0,0.00019999,2]
[408440757,1773631843745,-500.0,0.00019999,2]
[408440759,1773631843756,-500.0,0.00019999,2]
[408440761,1773631843766,-500.0,0.00019999,2]
[408440763,1773631843775,-500.0,0.00019999,2]
[408440765,1773631843784,-500.0,0.00019999,2]
[408440767,1773631843794,-500.0,0.00019999,2]
[408440769,1773631843805,-500.0,0.00019999,2]
[408440771,1773631843813,-500.0,0.00019999,2]
[408440772,1773631843823,-497.5999203,0.00019999,2]
[408440774,1773631843832,-3000.0,0.00019999,2]
[408440776,1773631843842,-151.0,0.00019999,2]